fUSD/lending_fUSD_20250617
["ID","MTS","AMOUNT","RATE_DAILY","PERIOD"]
[366330859,1750192969580,-180.0,0.00015429,2]
[366330860,1750192969608,-23900.0,0.0001543,2]
[366330861,1750192969636,-250.0,0.00015519,2]
[366330862,1750192969663,-367.53,0.0001552,2]
[366330863,1750192969691,-216.59,0.00015528,2]
[366330864,1750192969719,-789.99284083,0.00015688,2]
[366330865,1750192969746,-354.83,0.000157,2]
[366330866,1750192969773,-354.83,0.000157,2]
[366330867,1750192969802,-201.0,0.00015872,3]
[366330868,1750192969834,-166.52,0.00015879,2]
[366330869,1750192969869,-1194.8074387,0.000159,2]
[366330870,1750193203441,2074.2300253,0.00024657,120]
[366330887,1750193431994,-201.0,0.00014368,2]
[366330888,1750193432005,-201.0,0.0001488,2]
[366330889,1750193432015,-200.0,0.0001539,7]
[366330890,1750193432024,-185.0,0.00015393,3]
[366330891,1750193432104,-16.0,0.00015393,3]
[366330892,1750193432114,-155.0,0.0001542,2]
[366330893,1750193432125,-250.0,0.00015424,2]
[366330894,1750193432137,-1000.0,0.00015425,2]
[366330895,1750193432147,-214.4,0.0001544,2]
[366330896,1750193432157,-201.0,0.00015906,3]
[366330897,1750193432168,-797.62,0.00016165,2]
[366330898,1750193432178,-200.0,0.00016273,2]
[366330899,1750193432188,-200.0,0.00016276,2]
[366330900,1750193432198,-200.0,0.00016277,2]
[366330901,1750193432209,-200.0,0.00016279,2]
[366330902,1750193432219,-200.0,0.00016284,2]
[366330903,1750193432229,-200.0,0.00016286,2]
[366330904,1750193432240,-200.0,0.00016292,2]
[366330905,1750193432250,-200.0,0.00016293,2]
[366330906,1750193432260,-200.0,0.00016298,2]
[366330908,1750193432270,-200.0,0.00016311,2]
[366330910,1750193432280,-200.0,0.00016315,2]
[366330912,1750193432290,-200.0,0.00016318,2]
[366330914,1750193432300,-200.0,0.00016319,2]
[366330916,1750193432310,-207.4,0.00016328,2]
[366330917,1750193432320,-200.0,0.0001633,2]
[366330919,1750193432330,-201.02612601,0.00016336,2]
[366330920,1750193432340,-300.0,0.00016337,2]
[366330921,1750193432350,-300.0,0.00016337,2]
[366330922,1750193432360,-1200.0,0.00016337,2]
[366330923,1750193432370,-2687.09387399,0.00016338,2]
[366330924,1750193432382,-718.23489681,0.00016338,2]
[366330951,1750193437942,-1975.0,0.00016336,2]
[366330961,1750193438035,-1495.95978762,0.00016336,2]
[366331001,1750193438354,-1673.33217779,0.00016336,2]
[366331004,1750193438365,-5113.7997292,0.00016338,2]
[366331007,1750193438375,-338.83269222,0.00016338,2]
[366331010,1750193438385,-284.79173742,0.00016338,2]
[366331013,1750193438395,-271.04668852,0.00016338,2]
[366331016,1750193438405,-200.0,0.00016347,2]
[366331019,1750193438414,-200.0,0.00016363,2]
[366331022,1750193438423,-452.93647963,0.00016366,2]
[366331025,1750193438433,-200.0,0.00016371,2]
[366331027,1750193438442,-200.0,0.00016383,2]
[366331029,1750193438452,-200.0,0.00016386,2]
[366331031,1750193438461,-62.99888814,0.00016396,2]
[366331037,1750193438510,-137.00111186,0.00016396,2]
[366331039,1750193438520,-200.0,0.00016397,2]
[366331041,1750193438529,-142.99888814,0.00016398,2]
[366331245,1750193440605,-57.00111186,0.00016398,2]
[366331247,1750193440614,-354.83,0.000164,2]
[366331249,1750193440624,-1586.32,0.000164,2]
[366331251,1750193440634,-150.0,0.000164,2]
[366331253,1750193440643,-461.68,0.000164,2]
[366331255,1750193440653,-354.83,0.000164,2]
[366331257,1750193440663,-727.87,0.000164,2]
[366331259,1750193440673,-445.0,0.0001641,2]
[366331261,1750193440682,-1959.195,0.00016411,2]
[366331263,1750193440692,-620.0,0.00016412,2]
[366331266,1750193440701,-201.0,0.00016419,4]
[366331268,1750193440711,-151.0,0.00016428,2]
[366331270,1750193440721,-833.87704394,0.00016428,2]
[366331272,1750193440732,-4991.1139587,0.0001643,2]
[366331275,1750193440758,-256.55416432,0.0001643,2]
[366331277,1750193440769,-994.62112208,0.0001643,2]
[366331279,1750193440779,-630.41887792,0.0001643,2]
[366331282,1750193440793,-28527.25586081,0.0001643,2]
[366331286,1750193440825,-860.27902956,0.0001643,2]
[366331289,1750193440836,-77119.44227791,0.0001643,2]
[366331290,1750193440845,-13605.0343124,0.0001643,2]
[366331293,1750193440855,-78654.33902655,0.00016436,2]
[366331513,1750193443008,-3010.97319535,0.00016373,2]
[366331516,1750193443021,-870.7,0.00016373,2]
[366331521,1750193443065,-1262.61877004,0.00016373,2]
[366331523,1750193443075,-2072.98035925,0.00016436,2]
[366331525,1750193443085,-175.19335252,0.00016437,2]
[366331528,1750193443095,-500.0,0.00016437,2]
[366331530,1750193443105,-195.92539169,0.00016437,2]
[366331531,1750193443115,-500.0,0.00016437,2]
[366331534,1750193443125,-192.08267049,0.00016437,2]
[366331536,1750193443139,-500.0,0.00016437,2]
[366331538,1750193443149,-152.15757342,0.00016437,2]
[366331540,1750193443159,-500.0,0.00016437,2]
[366331542,1750193443171,-247.45772463,0.00016437,2]
[366331544,1750193443182,-511.07971876,0.00016437,2]
[366331546,1750193443192,-500.0,0.00016437,2]
[366331548,1750193443202,-575.77864924,0.00016437,2]
[366331550,1750193443213,-500.0,0.00016437,2]
[366331552,1750193443223,-185.9,0.00016437,2]
[366331554,1750193443232,-1133.51626191,0.00016438,2]
[366331567,1750193443345,-303784.77455391,0.00016438,2]
[366331569,1750193443355,-646.0076666,0.00016438,2]
[366331570,1750193443365,-1129.0,0.00016438,2]
[366331573,1750193443375,-188.778192,0.00016438,2]
[366331575,1750193443385,-188.778192,0.00016438,2]
[366331577,1750193443396,-188.778192,0.00016438,2]
[366331579,1750193443407,-188.778192,0.00016438,2]
[366331581,1750193443417,-188.778192,0.00016438,2]
[366331583,1750193443427,-188.778192,0.00016438,2]
[366331585,1750193443437,-188.778192,0.00016438,2]
[366331587,1750193443447,-188.778192,0.00016438,2]
[366331588,1750193443458,-188.778192,0.00016438,2]
[366331590,1750193443468,-188.778192,0.00016438,2]
[366331593,1750193443478,-188.778192,0.00016438,2]
[366331595,1750193443488,-188.778192,0.00016438,2]
[366331596,1750193443498,-151.0,0.00016438,2]
[366331599,1750193443508,-151.0,0.00016438,2]
[366331601,1750193443518,-151.0,0.00016438,2]
[366331603,1750193443529,-151.0,0.00016438,2]
[366331605,1750193443539,-151.0,0.00016438,2]
[366331607,1750193443550,-151.0,0.00016438,2]
[366331609,1750193443560,-151.0,0.00016438,2]
[366331611,1750193443570,-151.0,0.00016438,2]
[366331613,1750193443580,-306.1886,0.00016438,2]
[366331615,1750193443590,-306.1886,0.00016438,2]
[366331617,1750193443601,-306.1886,0.00016438,2]
[366331619,1750193443611,-306.1886,0.00016438,2]
[366331621,1750193443620,-306.1886,0.00016438,2]
[366331623,1750193443630,-306.1886,0.00016438,2]
[366331625,1750193443641,-306.1886,0.00016438,2]
[366331627,1750193443651,-306.1886,0.00016438,2]
[366331629,1750193443662,-306.1886,0.00016438,2]
[366331631,1750193443672,-306.1886,0.00016438,2]
[366331633,1750193443682,-306.1886,0.00016438,2]
[366331635,1750193443692,-306.1886,0.00016438,2]
[366331638,1750193443702,-356.349299,0.00016438,2]
[366331640,1750193443712,-356.349299,0.00016438,2]
[366331642,1750193443722,-356.349299,0.00016438,2]
[366331644,1750193443733,-356.349299,0.00016438,2]
[366331646,1750193443743,-356.349299,0.00016438,2]
[366331648,1750193443754,-356.349299,0.00016438,2]
[366331650,1750193443765,-151.0,0.00016438,2]
[366331652,1750193443776,-151.0,0.00016438,2]
[366331654,1750193443786,-151.0,0.00016438,2]
[366331656,1750193443797,-151.0,0.00016438,2]
[366331659,1750193443806,-151.0,0.00016438,2]
[366331661,1750193443816,-356.349299,0.00016438,2]
[366331663,1750193443826,-151.0,0.00016438,2]
[366331665,1750193443837,-356.349299,0.00016438,2]
[366331667,1750193443847,-356.349299,0.00016438,2]
[366331669,1750193443857,-356.349299,0.00016438,2]
[366331671,1750193443867,-356.349299,0.00016438,2]
[366331673,1750193443877,-356.349299,0.00016438,2]
[366331675,1750193443887,-196.823862,0.00016438,2]
[366331677,1750193443897,-196.823862,0.00016438,2]
[366331679,1750193443907,-196.823862,0.00016438,2]
[366331681,1750193443916,-196.823862,0.00016438,2]
[366331683,1750193443926,-196.823862,0.00016438,2]
[366331685,1750193443935,-196.823862,0.00016438,2]
[366331687,1750193443944,-196.823862,0.00016438,2]
[366331689,1750193443955,-196.823862,0.00016438,2]
[366331691,1750193443965,-196.823862,0.00016438,2]
[366331693,1750193443975,-196.823862,0.00016438,2]
[366331695,1750193443986,-169.456703,0.00016438,2]
[366331697,1750193443996,-169.456703,0.00016438,2]
[366331699,1750193444006,-169.456703,0.00016438,2]
[366331701,1750193444015,-169.456703,0.00016438,2]
[366331703,1750193444025,-169.456703,0.00016438,2]
[366331705,1750193444036,-169.456703,0.00016438,2]
[366331708,1750193444046,-169.456703,0.00016438,2]
[366331710,1750193444055,-169.456703,0.00016438,2]
[366331712,1750193444066,-169.456703,0.00016438,2]
[366331714,1750193444076,-169.456703,0.00016438,2]
[366331716,1750193444086,-169.456703,0.00016438,2]
[366331718,1750193444101,-169.456703,0.00016438,2]
[366331720,1750193444111,-151.0,0.00016438,2]
[366331722,1750193444120,-156.751207,0.00016438,2]
[366331724,1750193444133,-812.334441,0.00016438,2]
[366331726,1750193444143,-151.470232,0.00016438,2]
[366331728,1750193444153,-151.0,0.00016438,2]
[366331730,1750193444163,-151.0,0.00016438,2]
[366331733,1750193444175,-151.0,0.00016438,2]
[366331735,1750193444184,-151.0,0.00016438,2]
[366331737,1750193444194,-151.0,0.00016438,2]
[366331739,1750193444205,-151.0,0.00016438,2]
[366331741,1750193444216,-151.0,0.00016438,2]
[366331743,1750193444229,-151.0,0.00016438,2]
[366331745,1750193444239,-151.0,0.00016438,2]
[366331747,1750193444249,-151.0,0.00016438,2]
[366331749,1750193444259,-151.0,0.00016438,2]
[366331751,1750193444268,-151.0,0.00016438,2]
[366331754,1750193444279,-151.0,0.00016438,2]
[366331756,1750193444288,-151.0,0.00016438,2]
[366331757,1750193444299,-151.0,0.00016438,2]
[366331760,1750193444309,-281.990238,0.00016438,2]
[366331762,1750193444319,-151.0,0.00016438,2]
[366331764,1750193444329,-151.0,0.00016438,2]
[366331766,1750193444339,-151.0,0.00016438,2]
[366331768,1750193444349,-151.0,0.00016438,2]
[366331803,1750193444699,-151.0,0.00016438,2]
[366331805,1750193444712,-151.0,0.00016438,2]
[366331807,1750193444722,-151.0,0.00016438,2]
[366331809,1750193444732,-151.0,0.00016438,2]
[366331811,1750193444742,-261.047031,0.00016438,2]
[366331813,1750193444752,-151.0,0.00016438,2]
[366331815,1750193444763,-151.0,0.00016438,2]
[366331817,1750193444773,-151.0,0.00016438,2]
[366331819,1750193444783,-151.0,0.00016438,2]
[366331821,1750193444792,-151.0,0.00016438,2]
[366331823,1750193444802,-151.0,0.00016438,2]
[366331825,1750193444811,-151.0,0.00016438,2]
[366331827,1750193444822,-166.563169,0.00016438,2]
[366331829,1750193444831,-151.0,0.00016438,2]
[366331831,1750193444840,-221.493222,0.00016438,2]
[366331833,1750193444850,-151.0,0.00016438,2]
[366331835,1750193444860,-1338.750107,0.00016438,2]
[366331837,1750193444870,-1338.750107,0.00016438,2]
[366331839,1750193444879,-1338.750107,0.00016438,2]
[366331841,1750193444889,-1338.750107,0.00016438,2]
[366331843,1750193444898,-1338.750107,0.00016438,2]
[366331845,1750193444908,-1338.750107,0.00016438,2]
[366331847,1750193444917,-1338.750107,0.00016438,2]
[366331849,1750193444927,-151.0,0.00016438,2]
[366331851,1750193444937,-151.0,0.00016438,2]
[366331853,1750193444946,-151.0,0.00016438,2]
[366331855,1750193444956,-151.0,0.00016438,2]
[366331857,1750193444966,-151.0,0.00016438,2]
[366331859,1750193444975,-151.0,0.00016438,2]
[366331861,1750193444986,-151.0,0.00016438,2]
[366331863,1750193444996,-197.935543,0.00016438,2]
[366331865,1750193445005,-151.0,0.00016438,2]
[366331867,1750193445015,-151.0,0.00016438,2]
[366331869,1750193445025,-151.0,0.00016438,2]
[366331871,1750193445034,-151.0,0.00016438,2]
[366331873,1750193445044,-151.0,0.00016438,2]
[366331875,1750193445054,-151.0,0.00016438,2]
[366331877,1750193445063,-151.0,0.00016438,2]
[366331879,1750193445073,-246.640037,0.00016438,2]
[366331881,1750193445082,-151.0,0.00016438,2]
[366331882,1750193445092,-151.0,0.00016438,2]
[366331884,1750193445102,-151.0,0.00016438,2]
[366331886,1750193445111,-151.0,0.00016438,2]
[366331888,1750193445121,-151.0,0.00016438,2]
[366331890,1750193445132,-151.0,0.00016438,2]
[366331892,1750193445143,-151.0,0.00016438,2]
[366331894,1750193445153,-151.0,0.00016438,2]
[366331896,1750193445162,-299.410282,0.00016438,2]
[366331898,1750193445173,-151.0,0.00016438,2]
[366331900,1750193445183,-299.410282,0.00016438,2]
[366331903,1750193445193,-151.0,0.00016438,2]
[366331905,1750193445203,-299.410282,0.00016438,2]
[366331906,1750193445215,-151.0,0.00016438,2]
[366331908,1750193445225,-299.410282,0.00016438,2]
[366331910,1750193445236,-151.0,0.00016438,2]
[366331912,1750193445245,-299.410282,0.00016438,2]
[366331914,1750193445255,-299.410282,0.00016438,2]
[366331916,1750193445264,-151.0,0.00016438,2]
[366331918,1750193445274,-159.786259,0.00016438,2]
[366331920,1750193445283,-299.410282,0.00016438,2]
[366331922,1750193445293,-299.410282,0.00016438,2]
[366331924,1750193445302,-299.410282,0.00016438,2]
[366331926,1750193445312,-299.410282,0.00016438,2]
[366331928,1750193445321,-299.410282,0.00016438,2]
[366331930,1750193445331,-299.410282,0.00016438,2]
[366331932,1750193445340,-151.0,0.00016438,2]
[366331935,1750193445350,-151.0,0.00016438,2]
[366331937,1750193445361,-151.0,0.00016438,2]
[366331939,1750193445371,-151.0,0.00016438,2]
[366331941,1750193445380,-151.0,0.00016438,2]
[366331943,1750193445390,-151.0,0.00016438,2]
[366331945,1750193445400,-151.0,0.00016438,2]
[366331946,1750193445410,-151.0,0.00016438,2]
[366331948,1750193445420,-151.0,0.00016438,2]
[366331950,1750193445429,-442.289838,0.00016438,2]
[366331952,1750193445440,-442.289838,0.00016438,2]
[366331954,1750193445450,-442.289838,0.00016438,2]
[366331956,1750193445460,-442.289838,0.00016438,2]
[366331958,1750193445470,-442.289838,0.00016438,2]
[366331960,1750193445479,-442.289838,0.00016438,2]
[366331962,1750193445489,-442.289838,0.00016438,2]
[366331964,1750193445499,-442.289838,0.00016438,2]
[366331966,1750193445509,-442.289838,0.00016438,2]
[366331968,1750193445519,-442.289838,0.00016438,2]
[366331970,1750193445528,-442.289838,0.00016438,2]
[366331972,1750193445537,-442.289838,0.00016438,2]
[366331974,1750193445547,-151.0,0.00016438,2]
[366331976,1750193445558,-151.0,0.00016438,2]
[366331977,1750193445567,-151.0,0.00016438,2]
[366331978,1750193445578,-151.0,0.00016438,2]
[366331979,1750193445587,-151.0,0.00016438,2]
[366331980,1750193445597,-151.0,0.00016438,2]
[366331981,1750193445606,-151.0,0.00016438,2]
[366331982,1750193445616,-151.0,0.00016438,2]
[366331983,1750193445626,-151.0,0.00016438,2]
[366331984,1750193445635,-151.0,0.00016438,2]
[366331985,1750193445645,-151.0,0.00016438,2]
[366331986,1750193445654,-151.0,0.00016438,2]
[366331987,1750193445663,-151.0,0.00016438,2]
[366331988,1750193445673,-151.0,0.00016438,2]
[366331989,1750193445683,-151.0,0.00016438,2]
[366331991,1750193445692,-151.0,0.00016438,2]
[366331993,1750193445701,-280.938405,0.00016438,2]
[366331995,1750193445711,-151.0,0.00016438,2]
[366331997,1750193445721,-151.0,0.00016438,2]
[366331999,1750193445730,-151.0,0.00016438,2]
[366332000,1750193445740,-151.0,0.00016438,2]
[366332001,1750193445750,-151.0,0.00016438,2]
[366332002,1750193445760,-151.0,0.00016438,2]
[366332003,1750193445770,-151.0,0.00016438,2]
[366332004,1750193445780,-151.0,0.00016438,2]
[366332005,1750193445790,-151.0,0.00016438,2]
[366332006,1750193445799,-151.0,0.00016438,2]
[366332007,1750193445810,-151.0,0.00016438,2]
[366332008,1750193445820,-151.0,0.00016438,2]
[366332009,1750193445830,-151.0,0.00016438,2]
[366332010,1750193445840,-151.0,0.00016438,2]
[366332011,1750193445850,-151.0,0.00016438,2]
[366332013,1750193445860,-151.0,0.00016438,2]
[366332014,1750193445871,-191.545954,0.00016438,2]
[366332015,1750193445880,-466.010058,0.00016438,2]
[366332016,1750193445890,-466.010058,0.00016438,2]
[366332017,1750193445899,-466.010058,0.00016438,2]
[366332018,1750193445909,-466.010058,0.00016438,2]
[366332019,1750193445919,-466.010058,0.00016438,2]
[366332020,1750193445928,-466.010058,0.00016438,2]
[366332021,1750193445940,-466.010058,0.00016438,2]
[366332022,1750193445949,-466.010058,0.00016438,2]
[366332024,1750193445959,-466.010058,0.00016438,2]
[366332027,1750193445969,-466.010058,0.00016438,2]
[366332029,1750193445979,-466.010058,0.00016438,2]
[366332031,1750193445989,-466.010058,0.00016438,2]
[366332033,1750193446000,-404.482042,0.00016438,2]
[366332035,1750193446010,-404.482042,0.00016438,2]
[366332037,1750193446020,-404.482042,0.00016438,2]
[366332039,1750193446029,-404.482042,0.00016438,2]
[366332041,1750193446039,-404.482042,0.00016438,2]
[366332043,1750193446049,-404.482042,0.00016438,2]
[366332045,1750193446059,-404.482042,0.00016438,2]
[366332047,1750193446068,-404.482042,0.00016438,2]
[366332049,1750193446078,-404.482042,0.00016438,2]
[366332051,1750193446088,-404.482042,0.00016438,2]
[366332053,1750193446098,-151.0,0.00016438,2]
[366332054,1750193446107,-151.0,0.00016438,2]
[366332055,1750193446117,-151.0,0.00016438,2]
[366332056,1750193446128,-151.0,0.00016438,2]
[366332057,1750193446139,-151.0,0.00016438,2]
[366332058,1750193446150,-151.0,0.00016438,2]
[366332059,1750193446159,-2764.720422,0.00016438,2]
[366332060,1750193446171,-159.094829,0.00016438,2]
[366332061,1750193446181,-151.0,0.00016438,2]
[366332062,1750193446191,-151.0,0.00016438,2]
[366332063,1750193446201,-151.0,0.00016438,2]
[366332064,1750193446211,-289.798146,0.00016438,2]
[366332065,1750193446221,-161.916212,0.00016438,2]
[366332066,1750193446230,-151.0,0.00016438,2]
[366332067,1750193446240,-151.0,0.00016438,2]
[366332068,1750193446250,-151.0,0.00016438,2]
[366332069,1750193446260,-2870.7802,0.00016438,2]
[366332070,1750193446270,-151.0,0.00016438,2]
[366332071,1750193446281,-151.0,0.00016438,2]
[366332072,1750193446291,-151.0,0.00016438,2]
[366332073,1750193446301,-151.0,0.00016438,2]
[366332074,1750193446310,-151.0,0.00016438,2]
[366332075,1750193446320,-151.0,0.00016438,2]
[366332076,1750193446330,-151.0,0.00016438,2]
[366332077,1750193446340,-151.0,0.00016438,2]
[366332078,1750193446350,-151.0,0.00016438,2]
[366332079,1750193446359,-151.0,0.00016438,2]
[366332080,1750193446369,-151.0,0.00016438,2]
[366332081,1750193446379,-151.0,0.00016438,2]
[366332082,1750193446390,-151.0,0.00016438,2]
[366332083,1750193446399,-151.0,0.00016438,2]
[366332084,1750193446409,-151.0,0.00016438,2]
[366332085,1750193446419,-151.0,0.00016438,2]
[366332086,1750193446429,-151.0,0.00016438,2]
[366332087,1750193446438,-2683.816916,0.00016438,2]
[366332088,1750193446448,-2683.816916,0.00016438,2]
[366332090,1750193446457,-2683.816916,0.00016438,2]
[366332092,1750193446467,-2683.816916,0.00016438,2]
[366332094,1750193446476,-2683.816916,0.00016438,2]
[366332096,1750193446486,-151.0,0.00016438,2]
[366332098,1750193446496,-2683.816916,0.00016438,2]
[366332099,1750193446507,-218.007186,0.00016438,2]
[366332100,1750193446517,-151.0,0.00016438,2]
[366332101,1750193446527,-224.78271081,0.00016438,2]
[366332102,1750193446538,-224.770491,0.00016438,2]
[366332103,1750193446548,-224.770491,0.00016438,2]
[366332104,1750193446558,-224.770491,0.00016438,2]
[366332105,1750193446569,-224.770491,0.00016438,2]
[366332106,1750193446579,-224.770491,0.00016438,2]
[366332107,1750193446588,-224.770491,0.00016438,2]
[366332108,1750193446598,-151.0,0.00016438,2]
[366332109,1750193446607,-151.0,0.00016438,2]
[366332110,1750193446616,-151.0,0.00016438,2]
[366332111,1750193446625,-224.770491,0.00016438,2]
[366332112,1750193446635,-151.0,0.00016438,2]
[366332113,1750193446645,-224.770491,0.00016438,2]
[366332114,1750193446656,-151.0,0.00016438,2]
[366332115,1750193446666,-224.770491,0.00016438,2]
[366332116,1750193446676,-227.935709,0.00016438,2]
[366332117,1750193446686,-224.770491,0.00016438,2]
[366332118,1750193446696,-224.770491,0.00016438,2]
[366332119,1750193446705,-224.770491,0.00016438,2]
[366332120,1750193446715,-490.34221781,0.00016438,2]
[366332121,1750193446725,-151.0,0.00016438,2]
[366332122,1750193446736,-151.0,0.00016438,2]
[366332123,1750193446746,-151.0,0.00016438,2]
[366332124,1750193446755,-151.0,0.00016438,2]
[366332125,1750193446765,-151.0,0.00016438,2]
[366332126,1750193446775,-490.0,0.00016438,2]
[366332127,1750193446785,-151.0,0.00016438,2]
[366332128,1750193446795,-490.0,0.00016438,2]
[366332129,1750193446805,-151.0,0.00016438,2]
[366332130,1750193446817,-151.0,0.00016438,2]
[366332131,1750193446827,-151.0,0.00016438,2]
[366332132,1750193446837,-151.0,0.00016438,2]
[366332133,1750193446847,-151.0,0.00016438,2]
[366332134,1750193446857,-151.0,0.00016438,2]
[366332135,1750193446867,-490.0,0.00016438,2]
[366332136,1750193446877,-151.0,0.00016438,2]
[366332137,1750193446887,-151.0,0.00016438,2]
[366332138,1750193446897,-151.0,0.00016438,2]
[366332139,1750193446907,-490.0,0.00016438,2]
[366332140,1750193446917,-300.0310098,0.00016438,2]
[366332141,1750193446927,-490.0,0.00016438,2]
[366332142,1750193446937,-490.0,0.00016438,2]
[366332143,1750193446947,-360.73343666,0.00016438,2]
[366332144,1750193446960,-1863.630656,0.00016438,2]
[366332145,1750193446970,-1863.630656,0.00016438,2]
[366332146,1750193446980,-1863.630656,0.00016438,2]
[366332147,1750193446990,-1863.630656,0.00016438,2]
[366332148,1750193447000,-490.0,0.00016438,2]
[366332149,1750193447011,-1863.630656,0.00016438,2]
[366332150,1750193447020,-1863.630656,0.00016438,2]
[366332151,1750193447030,-501.45281222,0.00016438,2]
[366332152,1750193447040,-1863.630656,0.00016438,2]
[366332153,1750193447050,-1863.630656,0.00016438,2]
[366332154,1750193447060,-1863.630656,0.00016438,2]
[366332155,1750193447070,-1863.630656,0.00016438,2]
[366332156,1750193447180,-1863.630656,0.00016438,2]
[366332157,1750193447191,-1863.630656,0.00016438,2]
[366332158,1750193447200,-490.0,0.00016438,2]
[366332159,1750193447211,-460.0,0.00016438,2]
[366332160,1750193447220,-490.0,0.00016438,2]
[366332161,1750193447230,-1039.123969,0.00016438,2]
[366332162,1750193447241,-1039.123969,0.00016438,2]
[366332163,1750193447250,-1039.123969,0.00016438,2]
[366332164,1750193447260,-1039.123969,0.00016438,2]
[366332165,1750193447270,-490.0,0.00016438,2]
[366332166,1750193447279,-490.0,0.00016438,2]
[366332167,1750193447289,-490.0,0.00016438,2]
[366332168,1750193447300,-490.0,0.00016438,2]
[366332169,1750193447309,-490.0,0.00016438,2]
[366332170,1750193447320,-490.0,0.00016438,2]
[366332171,1750193447329,-200.0,0.00016438,2]
[366332172,1750193447339,-490.0,0.00016438,2]
[366332173,1750193447349,-490.0,0.00016438,2]
[366332174,1750193447360,-490.0,0.00016438,2]
[366332175,1750193447370,-490.0,0.00016438,2]
[366332176,1750193447380,-490.0,0.00016438,2]
[366332177,1750193447389,-490.0,0.00016438,2]
[366332178,1750193447400,-460.0,0.00016438,2]
[366332179,1750193447410,-490.0,0.00016438,2]
[366332180,1750193447420,-490.0,0.00016438,2]
[366332181,1750193447431,-490.0,0.00016438,2]
[366332182,1750193447441,-490.0,0.00016438,2]
[366332183,1750193447451,-187.98616263,0.00016438,2]
[366332184,1750193447461,-490.0,0.00016438,2]
[366332185,1750193447471,-490.0,0.00016438,2]
[366332186,1750193447481,-151.0,0.00016438,2]
[366332187,1750193447491,-490.0,0.00016438,2]
[366332188,1750193447500,-151.0,0.00016438,2]
[366332189,1750193447509,-490.0,0.00016438,2]
[366332190,1750193447519,-151.0,0.00016438,2]
[366332191,1750193447529,-151.0,0.00016438,2]
[366332192,1750193447540,-490.0,0.00016438,2]
[366332193,1750193447550,-151.0,0.00016438,2]
[366332194,1750193447560,-151.0,0.00016438,2]
[366332195,1750193447570,-151.0,0.00016438,2]
[366332196,1750193447580,-229.247683,0.00016438,2]
[366332197,1750193447589,-490.0,0.00016438,2]
[366332198,1750193447599,-490.0,0.00016438,2]
[366332199,1750193447610,-490.0,0.00016438,2]
[366332200,1750193447619,-596.88063319,0.00016438,2]
[366332201,1750193447629,-756.61,0.00016438,2]
[366332202,1750193447639,-490.0,0.00016438,2]
[366332203,1750193447649,-502.53,0.00016438,2]
[366332204,1750193447658,-490.0,0.00016438,2]
[366332205,1750193447668,-652.62,0.00016438,2]
[366332206,1750193447678,-1415.13,0.00016438,2]
[366332207,1750193447688,-443.48977332,0.00016438,2]
[366332208,1750193447698,-490.76205299,0.00016438,2]
[366332209,1750193447708,-490.0,0.00016438,2]
[366332210,1750193447718,-490.0,0.00016438,2]
[366332211,1750193447727,-490.0,0.00016438,2]
[366332212,1750193447739,-584.14,0.00016438,2]
[366332213,1750193447749,-490.0,0.00016438,2]
[366332214,1750193447758,-422.10330062,0.00016438,2]